[Event "Late-Titled-Tuesday-Blitz-May-14-2024"]
[Site "Chess.com"]
[Date "2024.05.14"]
[Round "11"]
[White "RianKapriaga"]
[Black "urano56"]
[Result "0-1"]
[WhiteElo "2294"]
[BlackElo "2437"]
[TimeControl "180+1"]
[EndTime "16:04:37 PDT"]
[Termination "urano56 won by resignation"]

1. d4 {[%clk 0:03:00.9]} 1... Nf6 {[%clk 0:02:59.5]} 2. Nf3 {[%clk 0:03:00.4]}
2... g6 {[%clk 0:03:00]} 3. c4 {[%clk 0:02:56.5]} 3... Bg7 {[%clk 0:03:00.3]} 4.
Nc3 {[%clk 0:02:56.8]} 4... O-O {[%clk 0:03:00.3]} 5. Bg5 {[%clk 0:02:57.2]}
5... c5 {[%clk 0:02:52.5]} 6. d5 {[%clk 0:02:55.6]} 6... h6 {[%clk 0:02:51.8]}
7. Bh4 {[%clk 0:02:53.8]} 7... Qa5 {[%clk 0:02:37.5]} 8. Qd2 {[%clk 0:02:47.1]}
8... a6 {[%clk 0:02:32.8]} 9. e3 {[%clk 0:02:44.2]} 9... d6 {[%clk 0:02:26.8]}
10. Bd3 {[%clk 0:02:41.2]} 10... b5 {[%clk 0:02:25.8]} 11. cxb5 {[%clk
0:02:36.4]} 11... axb5 {[%clk 0:02:25.7]} 12. Bxf6 {[%clk 0:02:26.8]} 12... Bxf6
{[%clk 0:02:25]} 13. O-O {[%clk 0:02:10.2]} 13... c4 {[%clk 0:02:21.9]} 14. Bc2
{[%clk 0:02:04.5]} 14... Ba6 {[%clk 0:02:21]} 15. Ne4 {[%clk 0:01:59.8]} 15...
Qxd2 {[%clk 0:02:16.8]} 16. Nxf6+ {[%clk 0:01:59]} 16... exf6 {[%clk 0:02:17.7]}
17. Nxd2 {[%clk 0:01:58.8]} 17... Nd7 {[%clk 0:02:17.4]} 18. Rfc1 {[%clk
0:01:52]} 18... Nb6 {[%clk 0:02:11.7]} 19. Ne4 {[%clk 0:01:46.5]} 19... Nxd5
{[%clk 0:02:07.3]} 20. Rd1 {[%clk 0:01:46.8]} 20... Nb4 {[%clk 0:02:05.7]} 21.
Bb1 {[%clk 0:01:41.7]} 21... Rad8 {[%clk 0:01:59.6]} 22. a3 {[%clk 0:01:38.8]}
22... Nc6 {[%clk 0:01:55.7]} 23. Bc2 {[%clk 0:01:35.9]} 23... Kg7 {[%clk
0:01:50.7]} 24. Rxd6 {[%clk 0:01:26.3]} 24... Rxd6 {[%clk 0:01:45.7]} 25. Nxd6
{[%clk 0:01:27.2]} 25... Rd8 {[%clk 0:01:46.1]} 26. Rd1 {[%clk 0:01:27.4]} 26...
Kf8 {[%clk 0:01:43.2]} 27. f3 {[%clk 0:01:06.5]} 27... f5 {[%clk 0:01:38.7]} 28.
e4 {[%clk 0:00:49.8]} 28... Ke7 {[%clk 0:01:34]} 29. Nxf5+ {[%clk 0:00:28]}
29... gxf5 {[%clk 0:01:33.6]} 30. Rxd8 {[%clk 0:00:27.5]} 30... Kxd8 {[%clk
0:01:31.5]} 31. exf5 {[%clk 0:00:27.6]} 31... Ke7 {[%clk 0:01:28.8]} 32. Kf2
{[%clk 0:00:25.4]} 32... Nd4 {[%clk 0:01:26.7]} 33. Bb1 {[%clk 0:00:24.1]} 33...
Kf6 {[%clk 0:01:26.4]} 34. g4 {[%clk 0:00:24.1]} 34... Bb7 {[%clk 0:01:10.4]}
35. f4 {[%clk 0:00:20.2]} 35... Nb3 {[%clk 0:01:01.5]} 36. Ke3 {[%clk
0:00:18.4]} 36... Ke7 {[%clk 0:00:51.5]} 37. h4 {[%clk 0:00:16.9]} 37... f6
{[%clk 0:00:45.2]} 38. g5 {[%clk 0:00:15.7]} 38... hxg5 {[%clk 0:00:45]} 39.
fxg5 {[%clk 0:00:16.6]} 39... fxg5 {[%clk 0:00:45]} 40. hxg5 {[%clk 0:00:17.5]}
40... Nc5 {[%clk 0:00:43.3]} 41. Kd4 {[%clk 0:00:16.4]} 41... Nd7 {[%clk
0:00:42.9]} 42. f6+ {[%clk 0:00:15.1]} 42... Ke6 {[%clk 0:00:41.1]} 43. Bc2
{[%clk 0:00:13.8]} 43... Bc6 {[%clk 0:00:36.2]} 44. Bd1 {[%clk 0:00:13.7]} 44...
Kf5 {[%clk 0:00:30.2]} 45. Bg4+ {[%clk 0:00:09.1]} 45... Kxg4 {[%clk 0:00:27.9]}
46. g6 {[%clk 0:00:08.9]} 46... Nxf6 {[%clk 0:00:27.4]} 47. Kc5 {[%clk
0:00:08.8]} 47... Be8 {[%clk 0:00:27.4]} 48. g7 {[%clk 0:00:08.8]} 48... Kg5
{[%clk 0:00:23.4]} 49. a4 {[%clk 0:00:06.2]} 49... bxa4 {[%clk 0:00:22.7]} 50.
Kxc4 {[%clk 0:00:07.1]} 50... Kg6 {[%clk 0:00:23.1]} 51. b3 {[%clk 0:00:06.7]}
51... Bf7+ {[%clk 0:00:22.9]} 52. Kb4 {[%clk 0:00:05.1]} 52... axb3 {[%clk
0:00:23.8]} 0-1

[Event "Late-Titled-Tuesday-Blitz-May-14-2024"]
[Site "Chess.com"]
[Date "2024.05.14"]
[Round "11"]
[White "StoreySniper"]
[Black "frederiksvane"]
[Result "0-1"]
[WhiteElo "2564"]
[BlackElo "2956"]
[TimeControl "180+1"]
[EndTime "16:04:39 PDT"]
[Termination "frederiksvane won on time"]

1. e4 {[%clk 0:03:00.9]} 1... c5 {[%clk 0:02:51.8]} 2. Nf3 {[%clk 0:03:00.6]}
2... d6 {[%clk 0:02:51.8]} 3. d4 {[%clk 0:03:01]} 3... cxd4 {[%clk 0:02:52.7]}
4. Nxd4 {[%clk 0:03:01.4]} 4... Nf6 {[%clk 0:02:53.4]} 5. f3 {[%clk 0:03:01.5]}
5... Nc6 {[%clk 0:02:51.2]} 6. c4 {[%clk 0:03:00.8]} 6... e5 {[%clk 0:02:50.2]}
7. Nc2 {[%clk 0:03:00.6]} 7... Be6 {[%clk 0:02:50.2]} 8. Nc3 {[%clk 0:03:00]}
8... g6 {[%clk 0:02:50.2]} 9. Be3 {[%clk 0:02:59.8]} 9... a6 {[%clk 0:02:48]}
10. Qd2 {[%clk 0:02:59.8]} 10... Bg7 {[%clk 0:02:21.4]} 11. Be2 {[%clk
0:02:59.5]} 11... O-O {[%clk 0:02:20.9]} 12. O-O {[%clk 0:02:59.3]} 12... Nh5
{[%clk 0:02:19.1]} 13. Nd5 {[%clk 0:02:55.5]} 13... Bxd5 {[%clk 0:02:06]} 14.
cxd5 {[%clk 0:02:52.3]} 14... Ne7 {[%clk 0:02:04.1]} 15. Rfc1 {[%clk 0:02:44.9]}
15... f5 {[%clk 0:01:55.6]} 16. Na3 {[%clk 0:02:37.1]} 16... Nf6 {[%clk
0:01:48]} 17. Qd3 {[%clk 0:02:27.6]} 17... b5 {[%clk 0:01:40.8]} 18. Nc2 {[%clk
0:02:26.1]} 18... Qd7 {[%clk 0:01:27.1]} 19. Nb4 {[%clk 0:02:25.4]} 19... Nh5
{[%clk 0:01:18.3]} 20. Nc6 {[%clk 0:02:11.6]} 20... Nf4 {[%clk 0:01:13.2]} 21.
Qd1 {[%clk 0:01:56.9]} 21... Rac8 {[%clk 0:01:11.7]} 22. Nb4 {[%clk 0:01:50.6]}
22... a5 {[%clk 0:01:05.4]} 23. Nc6 {[%clk 0:01:45.9]} 23... Nxe2+ {[%clk
0:00:53.9]} 24. Qxe2 {[%clk 0:01:45.5]} 24... Nxc6 {[%clk 0:00:54.1]} 25. dxc6
{[%clk 0:01:37.9]} 25... Rxc6 {[%clk 0:00:55]} 26. Rxc6 {[%clk 0:01:32.6]} 26...
Qxc6 {[%clk 0:00:55.9]} 27. Rc1 {[%clk 0:01:32.7]} 27... Qd7 {[%clk 0:00:56.1]}
28. Bb6 {[%clk 0:01:29.8]} 28... fxe4 {[%clk 0:00:54]} 29. Qxe4 {[%clk
0:01:28.6]} 29... d5 {[%clk 0:00:54.2]} 30. Qe3 {[%clk 0:01:24.2]} 30... Rc8
{[%clk 0:00:39.5]} 31. Rxc8+ {[%clk 0:01:23]} 31... Qxc8 {[%clk 0:00:40.4]} 32.
Bxa5 {[%clk 0:01:22]} 32... Qc2 {[%clk 0:00:40.1]} 33. Qa7 {[%clk 0:01:15.1]}
33... Bf8 {[%clk 0:00:33.6]} 34. Qa8 {[%clk 0:01:06.5]} 34... Kg7 {[%clk
0:00:27.7]} 35. b4 {[%clk 0:00:59.1]} 35... Qb1+ {[%clk 0:00:21.8]} 36. Kf2
{[%clk 0:00:58.5]} 36... Qxa2+ {[%clk 0:00:22.5]} 37. Kg3 {[%clk 0:00:58.4]}
37... Qc4 {[%clk 0:00:17]} 38. Qe8 {[%clk 0:00:44.5]} 38... Qf4+ {[%clk
0:00:13.9]} 39. Kf2 {[%clk 0:00:44.1]} 39... Qd4+ {[%clk 0:00:13.4]} 40. Kg3
{[%clk 0:00:43.2]} 40... Qf4+ {[%clk 0:00:13.6]} 41. Kf2 {[%clk 0:00:43.6]}
41... Kh6 {[%clk 0:00:07.6]} 42. Bb6 {[%clk 0:00:41.3]} 42... d4 {[%clk
0:00:06.1]} 43. g3 {[%clk 0:00:32.2]} 43... Qe3+ {[%clk 0:00:06]} 44. Kg2 {[%clk
0:00:32.7]} 44... Qe2+ {[%clk 0:00:06.4]} 45. Kh3 {[%clk 0:00:26.2]} 45... Qxf3
{[%clk 0:00:06.7]} 46. Qxe5 {[%clk 0:00:19.4]} 46... Qf5+ {[%clk 0:00:06.9]} 47.
Qxf5 {[%clk 0:00:19.4]} 47... gxf5 {[%clk 0:00:07.8]} 48. Bxd4 {[%clk
0:00:10.8]} 48... Bxb4 {[%clk 0:00:07.7]} 49. g4 {[%clk 0:00:10.5]} 49... Kg6
{[%clk 0:00:05]} 50. gxf5+ {[%clk 0:00:07.9]} 50... Kxf5 {[%clk 0:00:05.9]} 51.
Kg2 {[%clk 0:00:07.3]} 51... Ke4 {[%clk 0:00:06.2]} 52. Bf6 {[%clk 0:00:04.6]}
52... Kd3 {[%clk 0:00:05.8]} 53. Kf3 {[%clk 0:00:02.2]} 53... Bc5 {[%clk
0:00:06]} 0-1

[Event "Late-Titled-Tuesday-Blitz-May-14-2024"]
[Site "Chess.com"]
[Date "2024.05.14"]
[Round "11"]
[White "schondeln"]
[Black "VictorFcQNK"]
[Result "0-1"]
[WhiteElo "2326"]
[BlackElo "2155"]
[TimeControl "180+1"]
[EndTime "16:04:39 PDT"]
[Termination "VictorFcQNK won by checkmate"]

1. e4 {[%clk 0:03:00.9]} 1... e6 {[%clk 0:02:59.5]} 2. d4 {[%clk 0:03:00.3]}
2... d5 {[%clk 0:02:58.4]} 3. exd5 {[%clk 0:03:01.2]} 3... exd5 {[%clk 0:02:58]}
4. Nf3 {[%clk 0:03:01.5]} 4... Bd6 {[%clk 0:02:56.1]} 5. c4 {[%clk 0:03:00.9]}
5... Nf6 {[%clk 0:02:47.7]} 6. Nc3 {[%clk 0:03:00.6]} 6... O-O {[%clk 0:02:44]}
7. cxd5 {[%clk 0:02:52.3]} 7... Nbd7 {[%clk 0:02:44.3]} 8. Be2 {[%clk
0:02:48.1]} 8... h6 {[%clk 0:02:41]} 9. O-O {[%clk 0:02:47.3]} 9... Nb6 {[%clk
0:02:38.1]} 10. Ne5 {[%clk 0:02:25.9]} 10... Nbxd5 {[%clk 0:02:34]} 11. Bf3
{[%clk 0:02:24]} 11... Be6 {[%clk 0:02:24.5]} 12. Re1 {[%clk 0:02:17.3]} 12...
c6 {[%clk 0:02:14]} 13. Bd2 {[%clk 0:02:02]} 13... Qc7 {[%clk 0:02:06.3]} 14.
Qc2 {[%clk 0:01:53.6]} 14... Nb4 {[%clk 0:01:56.9]} 15. Qb1 {[%clk 0:01:47.3]}
15... Rae8 {[%clk 0:01:45.7]} 16. a3 {[%clk 0:01:47.4]} 16... Na6 {[%clk
0:01:43.8]} 17. Qd3 {[%clk 0:01:40.7]} 17... Rd8 {[%clk 0:01:29.5]} 18. Qe2
{[%clk 0:01:36.1]} 18... Qc8 {[%clk 0:01:16.8]} 19. Bf4 {[%clk 0:01:34.6]} 19...
Nc7 {[%clk 0:01:10]} 20. Rac1 {[%clk 0:01:26.4]} 20... Rfe8 {[%clk 0:01:04.1]}
21. Qf1 {[%clk 0:01:20.1]} 21... Ncd5 {[%clk 0:00:57]} 22. Nxd5 {[%clk
0:01:18.1]} 22... Nxd5 {[%clk 0:00:56.1]} 23. Bg3 {[%clk 0:01:14.7]} 23... Ne7
{[%clk 0:00:52.1]} 24. Rcd1 {[%clk 0:00:54.1]} 24... Nf5 {[%clk 0:00:45]} 25.
Bf4 {[%clk 0:00:54]} 25... Bb3 {[%clk 0:00:35]} 26. Rd2 {[%clk 0:00:51.3]} 26...
Bc7 {[%clk 0:00:33]} 27. Bg4 {[%clk 0:00:21.8]} 27... Ba5 {[%clk 0:00:23.6]} 28.
Qd3 {[%clk 0:00:17.9]} 28... Bxd2 {[%clk 0:00:14.6]} 29. Bxf5 {[%clk 0:00:17.7]}
29... Be6 {[%clk 0:00:13.4]} 30. Bxe6 {[%clk 0:00:17.5]} 30... Qxe6 {[%clk
0:00:12.7]} 31. Qxd2 {[%clk 0:00:15.9]} 31... f6 {[%clk 0:00:12.3]} 32. Nf3
{[%clk 0:00:16]} 32... Qf7 {[%clk 0:00:11.8]} 33. Rxe8+ {[%clk 0:00:15.3]} 33...
Rxe8 {[%clk 0:00:12]} 34. h4 {[%clk 0:00:14.6]} 34... g5 {[%clk 0:00:10.9]} 35.
hxg5 {[%clk 0:00:14.4]} 35... hxg5 {[%clk 0:00:11.1]} 36. Bg3 {[%clk 0:00:13.7]}
36... Kg7 {[%clk 0:00:11.2]} 37. Qd3 {[%clk 0:00:12.7]} 37... Rh8 {[%clk
0:00:10.5]} 38. b3 {[%clk 0:00:11.4]} 38... Qh5 {[%clk 0:00:10.3]} 39. Kf1
{[%clk 0:00:11.7]} 39... Qh1+ {[%clk 0:00:09.8]} 40. Ke2 {[%clk 0:00:12.1]}
40... Re8+ {[%clk 0:00:09.6]} 41. Kd2 {[%clk 0:00:12.2]} 41... Qa1 {[%clk
0:00:08.8]} 42. a4 {[%clk 0:00:08.8]} 42... Qb2+ {[%clk 0:00:08.8]} 43. Kd1
{[%clk 0:00:08]} 43... Qa1+ {[%clk 0:00:07.9]} 44. Kc2 {[%clk 0:00:08.3]} 44...
Qa2+ {[%clk 0:00:07.4]} 45. Kc3 {[%clk 0:00:08.7]} 45... Qa1+ {[%clk 0:00:06.2]}
46. Kb4 {[%clk 0:00:08.5]} 46... b6 {[%clk 0:00:03.4]} 47. d5 {[%clk 0:00:05.8]}
47... a5+ {[%clk 0:00:03.6]} 48. Kc4 {[%clk 0:00:05.7]} 48... Qc1+ {[%clk
0:00:03.6]} 49. Qc3 {[%clk 0:00:05.4]} 49... Re4+ {[%clk 0:00:03.8]} 50. Nd4
{[%clk 0:00:04.8]} 50... Qf1+ {[%clk 0:00:01.9]} 51. Qd3 {[%clk 0:00:03.6]}
51... Qc1+ {[%clk 0:00:01.2]} 52. Qc3 {[%clk 0:00:02]} 52... Qf1+ {[%clk
0:00:01.1]} 53. Qd3 {[%clk 0:00:02.2]} 53... Qc1+ {[%clk 0:00:01.2]} 54. Qc2
{[%clk 0:00:02.5]} 54... Qxc2# {[%clk 0:00:00.8]} 0-1

[Event "Late-Titled-Tuesday-Blitz-May-14-2024"]
[Site "Chess.com"]
[Date "2024.05.14"]
[Round "11"]
[White "Magicmaster17"]
[Black "lamomiajunior"]
[Result "0-1"]
[WhiteElo "2884"]
[BlackElo "2801"]
[TimeControl "180+1"]
[EndTime "16:04:40 PDT"]
[Termination "lamomiajunior won by checkmate"]

1. c4 {[%clk 0:03:00.9]} 1... Nf6 {[%clk 0:02:58.5]} 2. Nc3 {[%clk 0:03:00.8]}
2... g6 {[%clk 0:02:58.4]} 3. e4 {[%clk 0:03:00.2]} 3... d6 {[%clk 0:02:58.6]}
4. Nf3 {[%clk 0:03:00]} 4... Bg7 {[%clk 0:02:58.8]} 5. d4 {[%clk 0:03:00.1]}
5... O-O {[%clk 0:02:59]} 6. Be2 {[%clk 0:03:00.6]} 6... e5 {[%clk 0:02:59]} 7.
d5 {[%clk 0:03:00.8]} 7... Nbd7 {[%clk 0:02:57.1]} 8. Bg5 {[%clk 0:02:59.5]}
8... a6 {[%clk 0:02:47.5]} 9. Nd2 {[%clk 0:02:58.8]} 9... Qe8 {[%clk 0:02:47.6]}
10. O-O {[%clk 0:02:57]} 10... h6 {[%clk 0:02:47.9]} 11. Be3 {[%clk 0:02:56.8]}
11... Nh7 {[%clk 0:02:46.5]} 12. b4 {[%clk 0:02:56.4]} 12... f5 {[%clk
0:02:41.3]} 13. f3 {[%clk 0:02:56.8]} 13... f4 {[%clk 0:02:39.9]} 14. Bf2 {[%clk
0:02:57.4]} 14... g5 {[%clk 0:02:40.5]} 15. c5 {[%clk 0:02:32.4]} 15... h5
{[%clk 0:02:40.2]} 16. Nc4 {[%clk 0:02:31.4]} 16... Qg6 {[%clk 0:02:39.5]} 17.
Kh1 {[%clk 0:02:23.3]} 17... a5 {[%clk 0:02:20.6]} 18. cxd6 {[%clk 0:02:21.3]}
18... cxd6 {[%clk 0:02:17.6]} 19. Nb5 {[%clk 0:02:18.1]} 19... g4 {[%clk
0:02:03.9]} 20. Ncxd6 {[%clk 0:02:16.3]} 20... g3 {[%clk 0:02:03.9]} 21. Bg1
{[%clk 0:02:16.2]} 21... Ndf6 {[%clk 0:01:55.2]} 22. Nc7 {[%clk 0:02:08.6]}
22... Bh3 {[%clk 0:01:50.3]} 23. Ne6 {[%clk 0:01:59.7]} 23... h4 {[%clk
0:01:30.3]} 24. Nf5 {[%clk 0:01:35.6]} 24... Rf7 {[%clk 0:01:19.9]} 25. Re1
{[%clk 0:01:20.4]} 25... Ng5 {[%clk 0:00:52]} 26. Bf1 {[%clk 0:01:11.8]} 26...
gxh2 {[%clk 0:00:44.2]} 27. Bxh2 {[%clk 0:01:09.3]} 27... Bxf5 {[%clk 0:00:39]}
28. exf5 {[%clk 0:01:08.8]} 28... Qxf5 {[%clk 0:00:39.9]} 29. Bd3 {[%clk
0:01:03.2]} 29... e4 {[%clk 0:00:40.3]} 30. fxe4 {[%clk 0:01:03]} 30... Ngxe4
{[%clk 0:00:40]} 31. Qf3 {[%clk 0:01:01.5]} 31... Nf2+ {[%clk 0:00:27.1]} 32.
Qxf2 {[%clk 0:00:59]} 32... Qxd3 {[%clk 0:00:28]} 33. Rad1 {[%clk 0:00:54.4]}
33... Ng4 {[%clk 0:00:24.9]} 34. Qxh4 {[%clk 0:00:50.6]} 34... Qg6 {[%clk
0:00:24.9]} 35. Nxf4 {[%clk 0:00:49.7]} 35... Qf5 {[%clk 0:00:21.2]} 36. Nh3
{[%clk 0:00:28.9]} 36... Bf6 {[%clk 0:00:15.1]} 37. Qg3 {[%clk 0:00:25.6]} 37...
Rg7 {[%clk 0:00:15.3]} 38. Qd3 {[%clk 0:00:20]} 38... Qh5 {[%clk 0:00:15.4]} 39.
d6 {[%clk 0:00:19.4]} 39... Qxh3 {[%clk 0:00:13.8]} 40. Qxh3 {[%clk 0:00:16.7]}
40... Nf2+ {[%clk 0:00:14]} 41. Kg1 {[%clk 0:00:17.6]} 41... Nxh3+ {[%clk
0:00:14.9]} 42. Kf1 {[%clk 0:00:18.2]} 42... Ng5 {[%clk 0:00:14.2]} 43. bxa5
{[%clk 0:00:17.9]} 43... Bc3 {[%clk 0:00:13.1]} 44. Re3 {[%clk 0:00:17.1]} 44...
Bxa5 {[%clk 0:00:11.8]} 45. d7 {[%clk 0:00:17.6]} 45... Bd8 {[%clk 0:00:09.4]}
46. Re8+ {[%clk 0:00:17.7]} 46... Kf7 {[%clk 0:00:09.8]} 47. Be5 {[%clk
0:00:16]} 47... Rg6 {[%clk 0:00:09.3]} 48. Rc1 {[%clk 0:00:15.7]} 48... Ne6
{[%clk 0:00:04.6]} 49. Rc8 {[%clk 0:00:13.1]} 49... Rxa2 {[%clk 0:00:04.9]} 50.
g3 {[%clk 0:00:12.7]} 50... Rg5 {[%clk 0:00:03.9]} 51. Bc7 {[%clk 0:00:06.3]}
51... Rd5 {[%clk 0:00:03.9]} 52. Bxd8 {[%clk 0:00:06.2]} 52... Rd1# {[%clk
0:00:03.9]} 0-1

[Event "Late-Titled-Tuesday-Blitz-May-14-2024"]
[Site "Chess.com"]
[Date "2024.05.14"]
[Round "11"]
[White "MuhittinBuker"]
[Black "egnfanclub"]
[Result "0-1"]
[WhiteElo "2231"]
[BlackElo "2368"]
[TimeControl "180+1"]
[EndTime "16:04:40 PDT"]
[Termination "egnfanclub won by resignation"]

1. d4 {[%clk 0:03:00.9]} 1... d5 {[%clk 0:02:59.5]} 2. c4 {[%clk 0:03:00.2]}
2... c6 {[%clk 0:02:59.7]} 3. Nc3 {[%clk 0:03:00.2]} 3... Nf6 {[%clk 0:02:59.8]}
4. cxd5 {[%clk 0:03:00.4]} 4... cxd5 {[%clk 0:02:59.9]} 5. Nf3 {[%clk
0:03:01.1]} 5... Nc6 {[%clk 0:03:00.3]} 6. Bg5 {[%clk 0:03:00.6]} 6... Ne4
{[%clk 0:02:59.9]} 7. Bf4 {[%clk 0:03:00.2]} 7... e6 {[%clk 0:02:56.2]} 8. e3
{[%clk 0:03:00.4]} 8... Bb4 {[%clk 0:02:55.6]} 9. Qc2 {[%clk 0:02:59.5]} 9...
Qa5 {[%clk 0:02:55.4]} 10. Rc1 {[%clk 0:02:45.4]} 10... Qxa2 {[%clk 0:02:54.8]}
11. Bd3 {[%clk 0:02:44.8]} 11... Nxc3 {[%clk 0:02:50.6]} 12. bxc3 {[%clk
0:02:44.5]} 12... Qxc2 {[%clk 0:02:50.6]} 13. Rxc2 {[%clk 0:02:43.3]} 13... Ba5
{[%clk 0:02:49.8]} 14. Ke2 {[%clk 0:02:43.3]} 14... f6 {[%clk 0:02:49.8]} 15.
Ra1 {[%clk 0:02:41]} 15... g5 {[%clk 0:02:43.5]} 16. Bd6 {[%clk 0:02:39]} 16...
Bd7 {[%clk 0:02:33.4]} 17. c4 {[%clk 0:02:37.4]} 17... Bb4 {[%clk 0:02:08.4]}
18. Bg3 {[%clk 0:02:23.8]} 18... h5 {[%clk 0:02:05.3]} 19. h4 {[%clk 0:02:19.8]}
19... Be7 {[%clk 0:01:52.6]} 20. c5 {[%clk 0:02:14.7]} 20... Kf7 {[%clk
0:01:44.9]} 21. Rb2 {[%clk 0:02:12.5]} 21... b6 {[%clk 0:01:19.2]} 22. cxb6
{[%clk 0:01:52.6]} 22... axb6 {[%clk 0:01:20.1]} 23. Rxa8 {[%clk 0:01:50.4]}
23... Rxa8 {[%clk 0:01:21]} 24. Rxb6 {[%clk 0:01:44.2]} 24... Ra2+ {[%clk
0:01:20.7]} 25. Kf1 {[%clk 0:01:41.6]} 25... g4 {[%clk 0:01:14.8]} 26. Ne1
{[%clk 0:01:34.6]} 26... Nb4 {[%clk 0:01:14.4]} 27. Bh7 {[%clk 0:01:19.4]} 27...
Ra1 {[%clk 0:01:07]} 28. Rb7 {[%clk 0:01:15]} 28... Bc6 {[%clk 0:01:01.4]} 29.
Bg6+ {[%clk 0:01:02.1]} 29... Kxg6 {[%clk 0:00:58.4]} 30. Rxe7 {[%clk
0:01:01.8]} 30... Bb5+ {[%clk 0:00:52.5]} 31. Kg1 {[%clk 0:01:00.7]} 31... Rxe1+
{[%clk 0:00:45.8]} 32. Kh2 {[%clk 0:01:00.7]} 32... Kf5 {[%clk 0:00:43.1]} 33.
Rh7 {[%clk 0:00:57.9]} 33... Kg6 {[%clk 0:00:42.6]} 34. Re7 {[%clk 0:00:57.7]}
34... Bd3 {[%clk 0:00:32.4]} 35. Rxe6 {[%clk 0:00:56.4]} 35... Be4 {[%clk
0:00:32.6]} 36. Be5 {[%clk 0:00:55.3]} 36... Re2 {[%clk 0:00:25]} 37. Kg3 {[%clk
0:00:54.3]} 37... Nd3 {[%clk 0:00:24.8]} 38. Rxf6+ {[%clk 0:00:53.3]} 38... Kh7
{[%clk 0:00:24]} 39. Bd6 {[%clk 0:00:50.5]} 39... Re1 {[%clk 0:00:22.3]} 40. Kh2
{[%clk 0:00:46.5]} 40... Rf1 {[%clk 0:00:21.4]} 41. Bg3 {[%clk 0:00:45.2]} 41...
Ne1 {[%clk 0:00:21.2]} 42. f3 {[%clk 0:00:38.7]} 42... gxf3 {[%clk 0:00:21]} 43.
Bxe1 {[%clk 0:00:38.6]} 43... fxg2 {[%clk 0:00:19.5]} 44. Bf2 {[%clk 0:00:16.5]}
44... Rh1+ {[%clk 0:00:17.7]} 45. Kg3 {[%clk 0:00:14.8]} 45... g1=Q+ {[%clk
0:00:14.2]} 46. Bxg1 {[%clk 0:00:14]} 46... Rxg1+ {[%clk 0:00:15.1]} 47. Kf2
{[%clk 0:00:13.9]} 47... Rg2+ {[%clk 0:00:14.6]} 48. Ke1 {[%clk 0:00:14.2]}
48... Rg4 {[%clk 0:00:13]} 49. Kf2 {[%clk 0:00:10.9]} 49... Rxh4 {[%clk
0:00:12.9]} 50. Rf7+ {[%clk 0:00:10.3]} 50... Kg6 {[%clk 0:00:12.9]} 51. Rf8
{[%clk 0:00:10.2]} 51... Rh2+ {[%clk 0:00:13.1]} 52. Kf1 {[%clk 0:00:09.5]}
52... h4 {[%clk 0:00:12.7]} 53. Rg8+ {[%clk 0:00:08.8]} 53... Kf7 {[%clk
0:00:12.6]} 54. Rh8 {[%clk 0:00:08.8]} 54... h3 {[%clk 0:00:12.6]} 55. Rh4
{[%clk 0:00:07.2]} 55... Rh1+ {[%clk 0:00:12.5]} 56. Kf2 {[%clk 0:00:07]} 56...
Bg2 {[%clk 0:00:10.9]} 0-1

[Event "Late-Titled-Tuesday-Blitz-May-14-2024"]
[Site "Chess.com"]
[Date "2024.05.14"]
[Round "11"]
[White "Mops_2004"]
[Black "Sanan_Sjugirov"]
[Result "0-1"]
[WhiteElo "2851"]
[BlackElo "3038"]
[TimeControl "180+1"]
[EndTime "16:04:49 PDT"]
[Termination "Sanan_Sjugirov won on time"]

1. g3 {[%clk 0:03:00.9]} 1... Nf6 {[%clk 0:02:59.9]} 2. Bg2 {[%clk 0:03:01]}
2... g6 {[%clk 0:03:00.8]} 3. d4 {[%clk 0:03:01.2]} 3... Bg7 {[%clk 0:03:01.3]}
4. e4 {[%clk 0:03:01.6]} 4... d6 {[%clk 0:03:01.8]} 5. Nc3 {[%clk 0:03:02.2]}
5... O-O {[%clk 0:03:02.4]} 6. Nf3 {[%clk 0:03:02.8]} 6... c6 {[%clk 0:02:58.6]}
7. a4 {[%clk 0:03:02.3]} 7... a5 {[%clk 0:02:55.7]} 8. O-O {[%clk 0:03:01.8]}
8... Qc7 {[%clk 0:02:51.6]} 9. h3 {[%clk 0:02:57]} 9... e5 {[%clk 0:02:51.3]}
10. Bg5 {[%clk 0:02:51.8]} 10... Nbd7 {[%clk 0:02:47.6]} 11. Re1 {[%clk
0:02:48.5]} 11... h6 {[%clk 0:02:47.2]} 12. Be3 {[%clk 0:02:48.5]} 12... Re8
{[%clk 0:02:44.8]} 13. Qd2 {[%clk 0:02:44.7]} 13... Kh7 {[%clk 0:02:42.3]} 14.
Rad1 {[%clk 0:02:44.3]} 14... b6 {[%clk 0:02:26.8]} 15. d5 {[%clk 0:02:26.6]}
15... Bf8 {[%clk 0:02:07.1]} 16. dxc6 {[%clk 0:02:24.6]} 16... Qxc6 {[%clk
0:02:08]} 17. Nh2 {[%clk 0:02:12.6]} 17... Bb7 {[%clk 0:02:04.7]} 18. f3 {[%clk
0:01:46]} 18... Rad8 {[%clk 0:02:03]} 19. Bf1 {[%clk 0:01:44.1]} 19... Re6
{[%clk 0:01:40.7]} 20. b3 {[%clk 0:01:41.1]} 20... Qc8 {[%clk 0:01:05.6]} 21.
Bc4 {[%clk 0:01:39.8]} 21... Ba6 {[%clk 0:01:02.8]} 22. Bxa6 {[%clk 0:01:19.8]}
22... Qxa6 {[%clk 0:01:02]} 23. Nb5 {[%clk 0:01:20.5]} 23... Qc8 {[%clk
0:00:57.5]} 24. c4 {[%clk 0:01:20.3]} 24... Nc5 {[%clk 0:00:56]} 25. Bxc5 {[%clk
0:01:15.5]} 25... Qxc5+ {[%clk 0:00:55]} 26. Qf2 {[%clk 0:01:16.2]} 26... Qc6
{[%clk 0:00:53.8]} 27. Ng4 {[%clk 0:01:12.8]} 27... Nd7 {[%clk 0:00:48.6]} 28.
Ne3 {[%clk 0:01:00.4]} 28... Nc5 {[%clk 0:00:48.7]} 29. Qc2 {[%clk 0:01:00]}
29... Bg7 {[%clk 0:00:43.3]} 30. Kg2 {[%clk 0:00:59.5]} 30... Kh8 {[%clk
0:00:41.6]} 31. Rd2 {[%clk 0:00:58.8]} 31... h5 {[%clk 0:00:34.8]} 32. h4 {[%clk
0:00:50.7]} 32... Bh6 {[%clk 0:00:34.2]} 33. Rd5 {[%clk 0:00:42.8]} 33... Kg7
{[%clk 0:00:31.4]} 34. Nd1 {[%clk 0:00:37.6]} 34... Rf8 {[%clk 0:00:27.2]} 35.
Nf2 {[%clk 0:00:35.4]} 35... Na6 {[%clk 0:00:23.1]} 36. Qd1 {[%clk 0:00:24.8]}
36... Rd8 {[%clk 0:00:19.8]} 37. Qe2 {[%clk 0:00:24.6]} 37... Nb4 {[%clk
0:00:19.5]} 38. Rdd1 {[%clk 0:00:24.5]} 38... Rf8 {[%clk 0:00:18.4]} 39. Nd3
{[%clk 0:00:24.4]} 39... Na6 {[%clk 0:00:18.2]} 40. Nc3 {[%clk 0:00:21.8]} 40...
Nc7 {[%clk 0:00:15.6]} 41. Nd5 {[%clk 0:00:21.9]} 41... Qb7 {[%clk 0:00:14.8]}
42. b4 {[%clk 0:00:20.6]} 42... Nxd5 {[%clk 0:00:13.9]} 43. cxd5 {[%clk
0:00:17.2]} 43... Ree8 {[%clk 0:00:12.8]} 44. bxa5 {[%clk 0:00:13.1]} 44... bxa5
{[%clk 0:00:13.7]} 45. Rb1 {[%clk 0:00:13.5]} 45... Qd7 {[%clk 0:00:12.4]} 46.
Rb5 {[%clk 0:00:12.3]} 46... Rc8 {[%clk 0:00:10]} 47. Rxa5 {[%clk 0:00:09.7]}
47... Rc3 {[%clk 0:00:10.1]} 48. Rb5 {[%clk 0:00:08.8]} 48... Rfc8 {[%clk
0:00:10.2]} 49. Qf1 {[%clk 0:00:06.4]} 49... Qa7 {[%clk 0:00:06.8]} 50. Ra1
{[%clk 0:00:03.3]} 50... Rc2+ {[%clk 0:00:06.9]} 51. Kh1 {[%clk 0:00:03.2]}
51... R8c3 {[%clk 0:00:06.8]} 52. Rbb1 {[%clk 0:00:02.1]} 52... Qe3 {[%clk
0:00:06.6]} 53. Rd1 {[%clk 0:00:02.3]} 53... Re2 {[%clk 0:00:05.3]} 54. a5
{[%clk 0:00:01.7]} 54... Rcc2 {[%clk 0:00:04.3]} 0-1